fUSD/lending_fUSD_20250828
["ID","MTS","AMOUNT","RATE_DAILY","PERIOD"]
[381783544,1756345856387,-400.0,0.00017753,2]
[381783545,1756345856395,-400.0,0.00017753,2]
[381783546,1756345856404,-400.0,0.00017753,2]
[381783547,1756345856413,-400.0,0.00017753,2]
[381783548,1756345856421,-400.0,0.00017753,2]
[381783549,1756345856430,-454.51223698,0.00017753,2]
[381783550,1756345856440,-400.0,0.00017753,2]
[381783551,1756345856449,-400.0,0.00017753,2]
[381783552,1756345856457,-400.0,0.00017753,2]
[381783553,1756345856466,-400.0,0.00017753,2]
[381783554,1756345856475,-400.0,0.00017753,2]
[381783555,1756345856484,-400.0,0.00017753,2]
[381783556,1756345856492,-400.0,0.00017753,2]
[381783557,1756345856501,-400.0,0.00017753,2]
[381783558,1756345856510,-519.04806672,0.00017753,2]
[381783559,1756345856519,-400.0,0.00017753,2]
[381783560,1756345856528,-400.0,0.00017753,2]
[381783561,1756345856536,-400.0,0.00017753,2]
[381783562,1756345856545,-400.0,0.00017753,2]
[381783563,1756345856554,-584.88,0.00017753,2]
[381783564,1756345856564,-400.0,0.00017753,2]
[381783565,1756345856572,-400.0,0.00017753,2]
[381783566,1756345856582,-400.0,0.00017753,2]
[381783567,1756345856590,-266.18986466,0.00017753,2]
[381783568,1756345856603,-281.80999483,0.00017753,2]
[381783569,1756345856611,-400.0,0.00017753,2]
[381783570,1756345856621,-400.0,0.00017753,2]
[381783571,1756345856631,-400.0,0.00017753,2]
[381783572,1756345856640,-400.0,0.00017753,2]
[381783573,1756345856648,-400.0,0.00017753,2]
[381783574,1756345856657,-400.0,0.00017753,2]
[381783575,1756345856666,-300.0,0.00017753,2]
[381783576,1756345856675,-400.0,0.00017753,2]
[381783577,1756345856684,-400.0,0.00017753,2]
[381783578,1756345856692,-400.0,0.00017753,2]
[381783579,1756345856701,-675.97,0.00017753,2]
[381783580,1756345856719,-483.29,0.00017753,2]
[381783581,1756345856729,-393.68216632,0.00017753,2]
[381783582,1756345856738,-400.0,0.00017753,2]
[381783583,1756345856747,-400.0,0.00017753,2]
[381783584,1756345856755,-400.0,0.00017753,2]
[381783585,1756345856768,-400.0,0.00017753,2]
[381783586,1756345856778,-400.0,0.00017753,2]
[381783587,1756345856787,-400.0,0.00017753,2]
[381783588,1756345856796,-400.0,0.00017753,2]
[381783589,1756345856806,-400.0,0.00017753,2]
[381783590,1756345856816,-400.0,0.00017753,2]
[381783591,1756345856825,-12.93641809,0.00017753,2]
[381783592,1756345909539,846.92452566,0.0003013,120]
[381783593,1756345912443,196.0,0.0003013,120]
[381783594,1756345969992,835.31393144,0.0003013,120]
[381783595,1756346036177,151.42,0.00024821,120]
[381783596,1756346044052,-227.0,0.00014846,2]
[381783597,1756346048653,-1297.0,0.00014846,2]
[381783599,1756346224099,-227.0,0.0001559,2]
[381783600,1756346227519,-200.0,0.0001559,2]
[381783601,1756346260304,-1097.0,0.0001559,2]
[381783602,1756346404227,-868.49112374,0.0001559,2]
[381783603,1756346406458,-249.83581579,0.0001559,2]
[381783604,1756346464390,299.999999,0.0003,120]
[381783605,1756346479593,270.0,0.00030137,120]
[381783607,1756346529050,300.0,0.0003,120]
[381783608,1756346554072,300.0,0.0003,120]
[381783609,1756346588564,300.0,0.0003,120]
[381783610,1756346611381,180.66,8.022e-05,2]
[381783612,1756346704148,-202.46162343,0.00013699,2]
[381783617,1756346830330,-251.0,0.00013699,2]
[381783618,1756346833886,-11.13284864,0.00013699,2]
[381783619,1756346833909,-18.69837657,0.00013699,2]
[381783624,1756347031584,-250.0,0.000155,2]
[381783625,1756347031596,-179.649326,0.00015783,2]
[381783626,1756347031606,-145.26021172,0.00015843,2]
[381783627,1756347031617,-104.73978828,0.00015843,2]
[381783628,1756347031627,-500.0,0.00015863,2]
[381783629,1756347031636,-444.78,0.00015898,2]
[381783630,1756347031645,-350.08899253,0.00015999,2]
[381783631,1756347031655,-2232.0890997,0.00016,2]
[381783632,1756347031664,-160.0,0.00016074,7]
[381783633,1756347031673,-300.0,0.00016079,2]
[381783634,1756347031683,-1200.0,0.00016079,2]
[381783635,1756347031692,-183.0,0.00016079,2]
[381783636,1756347031701,-666.0,0.0001608,3]
[381783637,1756347031710,-27123.86,0.0001608,2]
[381783638,1756347031719,-1069.36784281,0.00016183,2]
[381783639,1756347031728,-154.0,0.00016256,2]
[381783640,1756347031737,-152.34888855,0.00016257,2]
[381783641,1756347031747,-151.0,0.00016257,2]
[381783642,1756347031756,-151.0,0.00016257,2]
[381783643,1756347031766,-151.0,0.00016257,2]
[381783644,1756347031776,-151.0,0.00016257,2]
[381783645,1756347031785,-151.0,0.00016257,2]
[381783646,1756347031795,-151.0,0.00016257,2]
[381783647,1756347031804,-151.0,0.00016257,2]
[381783648,1756347031814,-151.0,0.00016257,2]
[381783649,1756347031823,-151.0,0.00016257,2]
[381783650,1756347031833,-151.0,0.00016257,2]
[381783651,1756347031842,-500.0,0.00016257,2]
[381783652,1756347031851,-200.0,0.00016257,2]
[381783653,1756347031861,-151.0,0.00016257,2]
[381783654,1756347031870,-151.0,0.00016257,2]
[381783655,1756347031880,-247.10126137,0.00016257,2]
[381783656,1756347031889,-151.0,0.00016257,2]
[381783657,1756347031899,-1005.51061575,0.00016266,2]
[381783658,1756347031909,-4566.30533594,0.00016267,2]
[381783659,1756347031921,-14660.89466406,0.00016267,2]
[381783660,1756347031932,-219.25,0.00016283,2]
[381783661,1756347031941,-500.0,0.00016312,2]
[381783662,1756347031952,-945.4,0.00016341,2]
[381783664,1756347031962,-622.79,0.00016394,2]
[381783666,1756347031972,-150.0,0.00016427,2]
[381783668,1756347031981,-1000.0,0.00016489,2]
[381783670,1756347031991,-151.42,0.00016547,2]
[381783672,1756347032000,-666.77,0.00016716,2]
[381783673,1756347032009,-250.0,0.00016739,2]
[381783674,1756347032019,-150.0,0.00016739,2]
[381783675,1756347032028,-500.0,0.00016739,2]
[381783676,1756347032037,-300.0,0.00016739,2]
[381783677,1756347032047,-251.0,0.00016739,2]
[381783678,1756347032056,-2500.0,0.00016739,2]
[381783679,1756347032065,-300.0,0.00016739,2]
[381783680,1756347032075,-186.49,0.00016755,2]
[381783681,1756347032084,-257.91778498,0.00016913,2]
[381783682,1756347032093,-400.50039575,0.0001702,2]
[381783683,1756347032102,-219.25,0.00017097,2]
[381783684,1756347032116,-153.57281936,0.00017103,2]
[381783685,1756347032125,-6191.96703516,0.00017192,2]
[381783686,1756347032134,-400.0,0.00017202,2]
[381783687,1756347032143,-485.53,0.00017202,2]
[381783688,1756347032152,-400.0,0.00017202,2]
[381783689,1756347032163,-400.0,0.00017202,2]
[381783690,1756347032172,-400.0,0.00017202,2]
[381783691,1756347032183,-500.0,0.00017202,2]
[381783692,1756347032192,-400.0,0.00017202,2]
[381783693,1756347032202,-400.0,0.00017202,2]
[381783694,1756347032211,-400.0,0.00017202,2]
[381783695,1756347032220,-400.0,0.00017202,2]
[381783696,1756347032230,-400.0,0.00017202,2]
[381783697,1756347032239,-400.0,0.00017202,2]
[381783698,1756347032248,-400.0,0.00017202,2]
[381783699,1756347032257,-400.0,0.00017202,2]
[381783700,1756347032267,-400.0,0.00017202,2]
[381783701,1756347032277,-433.55,0.00017202,2]
[381783702,1756347032286,-400.0,0.00017202,2]
[381783703,1756347032297,-400.0,0.00017202,2]
[381783704,1756347032307,-400.0,0.00017202,2]
[381783705,1756347032318,-400.0,0.00017202,2]
[381783706,1756347032327,-400.0,0.00017202,2]
[381783707,1756347032337,-400.0,0.00017202,2]
[381783708,1756347032347,-400.0,0.00017202,2]
[381783709,1756347032357,-423.50430465,0.00017202,2]
[381783710,1756347032366,-400.0,0.00017202,2]
[381783711,1756347032376,-400.0,0.00017202,2]
[381783712,1756347032386,-400.0,0.00017202,2]
[381783713,1756347032395,-400.0,0.00017202,2]
[381783714,1756347032405,-371.0889115,0.00017202,2]
[381783715,1756347032420,-28.9110885,0.00017202,2]
[381783716,1756347032431,-400.0,0.00017202,2]
[381783717,1756347032441,-400.0,0.00017202,2]
[381783718,1756347032451,-400.0,0.00017202,2]
[381783719,1756347032460,-400.0,0.00017202,2]
[381783720,1756347032469,-491.11272661,0.00017202,2]
[381783721,1756347032478,-400.0,0.00017202,2]
[381783722,1756347032487,-400.0,0.00017202,2]
[381783723,1756347032496,-400.0,0.00017202,2]
[381783724,1756347032505,-400.0,0.00017202,2]
[381783725,1756347032515,-400.0,0.00017202,2]
[381783726,1756347032524,-400.0,0.00017202,2]
[381783727,1756347032533,-595.12,0.00017202,2]
[381783728,1756347032543,-402.74,0.00017202,2]
[381783729,1756347032552,-521.76,0.00017202,2]
[381783730,1756347032561,-400.0,0.00017202,2]
[381783731,1756347032570,-400.0,0.00017202,2]
[381783732,1756347032580,-400.0,0.00017202,2]
[381783733,1756347032590,-400.0,0.00017202,2]
[381783734,1756347032599,-400.0,0.00017202,2]
[381783735,1756347032608,-400.0,0.00017202,2]
[381783736,1756347032617,-528.26378514,0.00017202,2]
[381783737,1756347032627,-400.0,0.00017202,2]
[381783738,1756347032635,-400.0,0.00017202,2]
[381783739,1756347032645,-224.3493153,0.00017202,2]
[381783740,1756347032654,-400.0,0.00017202,2]
[381783741,1756347032663,-400.0,0.00017202,2]
[381783742,1756347032671,-400.0,0.00017202,2]
[381783743,1756347032680,-400.0,0.00017202,2]
[381783744,1756347032689,-400.0,0.00017202,2]
[381783745,1756347032699,-400.0,0.00017202,2]
[381783746,1756347032708,-400.0,0.00017202,2]
[381783747,1756347032717,-400.0,0.00017202,2]
[381783748,1756347032726,-400.0,0.00017202,2]
[381783749,1756347032735,-400.0,0.00017202,2]
[381783750,1756347032744,-400.0,0.00017202,2]
[381783751,1756347032754,-400.0,0.00017202,2]
[381783752,1756347032763,-400.0,0.00017202,2]
[381783753,1756347032771,-400.0,0.00017202,2]
[381783754,1756347032780,-400.0,0.00017202,2]
[381783755,1756347032789,-400.0,0.00017202,2]
[381783756,1756347032798,-400.0,0.00017202,2]
[381783757,1756347032807,-400.0,0.00017202,2]
[381783758,1756347032817,-400.0,0.00017202,2]
[381783759,1756347032826,-400.0,0.00017202,2]
[381783760,1756347032835,-400.0,0.00017202,2]
[381783761,1756347032844,-400.0,0.00017202,2]
[381783762,1756347032853,-400.0,0.00017202,2]
[381783763,1756347032862,-400.0,0.00017202,2]
[381783764,1756347032871,-400.0,0.00017202,2]
[381783765,1756347032881,-400.0,0.00017202,2]
[381783766,1756347032890,-400.0,0.00017202,2]
[381783767,1756347032899,-400.0,0.00017202,2]
[381783768,1756347032908,-400.0,0.00017202,2]
[381783769,1756347032917,-400.0,0.00017202,2]
[381783770,1756347032926,-400.0,0.00017202,2]
[381783771,1756347032936,-400.0,0.00017202,2]
[381783772,1756347032945,-400.0,0.00017202,2]
[381783773,1756347032956,-400.0,0.00017202,2]
[381783774,1756347032965,-400.0,0.00017202,2]
[381783775,1756347032974,-400.0,0.00017202,2]
[381783776,1756347032984,-400.0,0.00017202,2]
[381783777,1756347032993,-400.0,0.00017202,2]
[381783778,1756347033002,-400.0,0.00017202,2]
[381783779,1756347033012,-400.0,0.00017202,2]
[381783780,1756347033021,-400.0,0.00017202,2]
[381783781,1756347033030,-400.0,0.00017202,2]
[381783782,1756347033040,-400.0,0.00017202,2]
[381783783,1756347033050,-400.0,0.00017202,2]
[381783784,1756347033059,-400.0,0.00017202,2]
[381783785,1756347033069,-400.0,0.00017202,2]
[381783786,1756347033078,-400.0,0.00017202,2]
[381783787,1756347033088,-500.0,0.00017202,2]
[381783788,1756347033098,-1212.63,0.00017202,2]
[381783789,1756347033109,-400.0,0.00017202,2]
[381783790,1756347033121,-400.0,0.00017202,2]
[381783791,1756347033130,-400.0,0.00017202,2]
[381783792,1756347033140,-400.0,0.00017202,2]
[381783793,1756347033149,-400.0,0.00017202,2]
[381783794,1756347033160,-400.0,0.00017202,2]
[381783795,1756347033170,-400.0,0.00017202,2]
[381783796,1756347033179,-401.41815734,0.00017202,2]
[381783797,1756347033188,-400.0,0.00017203,2]
[381783798,1756347033199,-400.0,0.00017203,2]
[381783799,1756347033209,-400.0,0.00017203,2]
[381783800,1756347033218,-400.0,0.00017203,2]
[381783801,1756347033229,-400.0,0.00017203,2]
[381783802,1756347033238,-400.0,0.00017203,2]
[381783803,1756347033248,-400.0,0.00017203,2]
[381783804,1756347033257,-400.0,0.00017203,2]
[381783805,1756347033267,-400.0,0.00017203,2]
[381783806,1756347033276,-400.0,0.00017203,2]
[381783807,1756347033286,-400.0,0.00017203,2]
[381783808,1756347033296,-400.0,0.00017203,2]
[381783809,1756347033305,-404.07560197,0.00017203,2]
[381783810,1756347033315,-400.0,0.00017203,2]
[381783811,1756347033324,-400.0,0.00017203,2]
[381783812,1756347033334,-400.0,0.00017203,2]
[381783813,1756347033343,-400.0,0.00017203,2]
[381783814,1756347033353,-462.1,0.00017203,2]
[381783815,1756347033363,-400.0,0.00017203,2]
[381783816,1756347033372,-400.0,0.00017203,2]
[381783817,1756347033382,-400.0,0.00017203,2]
[381783818,1756347033391,-400.0,0.00017203,2]
[381783819,1756347033401,-400.0,0.00017203,2]
[381783820,1756347033411,-400.0,0.00017203,2]
[381783821,1756347033420,-400.0,0.00017203,2]
[381783822,1756347033432,-400.0,0.00017203,2]
[381783823,1756347033442,-400.0,0.00017203,2]
[381783824,1756347033452,-400.0,0.00017203,2]
[381783825,1756347033462,-400.0,0.00017203,2]
[381783826,1756347033471,-400.0,0.00017203,2]
[381783827,1756347033480,-400.0,0.00017203,2]
[381783828,1756347033493,-502.86,0.00017203,2]
[381783829,1756347033507,-400.0,0.00017203,2]
[381783830,1756347033517,-400.0,0.00017203,2]
[381783831,1756347033527,-400.0,0.00017203,2]
[381783832,1756347033537,-400.0,0.00017203,2]
[381783833,1756347033547,-408.32266358,0.00017203,2]
[381783834,1756347033556,-400.0,0.00017203,2]
[381783835,1756347033566,-300.0,0.00017203,2]
[381783836,1756347033575,-400.0,0.00017203,2]
[381783837,1756347033589,-400.0,0.00017203,2]
[381783838,1756347033607,-400.0,0.00017203,2]
[381783839,1756347033619,-410.09550127,0.00017203,2]
[381783840,1756347033628,-400.0,0.00017203,2]
[381783841,1756347033638,-403.5930941,0.00017203,2]
[381783842,1756347033648,-400.0,0.00017203,2]
[381783843,1756347033658,-400.0,0.00017203,2]
[381783844,1756347033667,-558.6,0.00017203,2]
[381783845,1756347033676,-400.0,0.00017203,2]
[381783846,1756347033686,-400.0,0.00017203,2]
[381783847,1756347033695,-400.0,0.00017203,2]
[381783848,1756347033706,-403.54662983,0.00017203,2]
[381783849,1756347033716,-403.94335099,0.00017203,2]
[381783850,1756347033726,-400.0,0.00017203,2]
[381783851,1756347033735,-404.46132932,0.00017203,2]
[381783852,1756347033745,-400.0,0.00017203,2]
[381783853,1756347033754,-400.0,0.00017203,2]
[381783854,1756347033763,-400.0,0.00017203,2]
[381783855,1756347033773,-396.79915877,0.00017203,2]
[381783856,1756347033782,-400.0,0.00017203,2]
[381783857,1756347033792,-400.0,0.00017203,2]
[381783858,1756347033802,-400.0,0.00017203,2]
[381783859,1756347033811,-261.37239785,0.00017203,2]
[381783860,1756347033821,-400.0,0.00017203,2]
[381783861,1756347033831,-404.23647945,0.00017203,2]
[381783862,1756347033841,-400.0,0.00017203,2]
[381783863,1756347033851,-400.0,0.00017203,2]
[381783864,1756347033861,-403.33430257,0.00017203,2]
[381783865,1756347033870,-405.15386852,0.00017203,2]
[381783866,1756347033879,-405.55009359,0.00017203,2]
[381783867,1756347033889,-400.0,0.00017203,2]
[381783868,1756347033898,-400.0,0.00017203,2]
[381783869,1756347033908,-400.0,0.00017203,2]
[381783870,1756347033917,-407.56021984,0.00017203,2]
[381783871,1756347033927,-403.76394311,0.00017203,2]
[381783872,1756347033938,-400.0,0.00017203,2]
[381783873,1756347033947,-400.0,0.00017203,2]
[381783874,1756347033958,-389.6780792,0.00017203,2]
[381783875,1756347033968,-400.0,0.00017203,2]
[381783876,1756347033978,-658.19,0.00017203,2]
[381783877,1756347033988,-400.0,0.00017203,2]
[381783878,1756347033998,-400.0,0.00017203,2]
[381783879,1756347034009,-400.0,0.00017203,2]
[381783880,1756347034019,-402.86029788,0.00017203,2]
[381783881,1756347034028,-400.0,0.00017203,2]
[381783882,1756347034038,-485.47,0.00017203,2]
[381783883,1756347034048,-400.0,0.00017203,2]
[381783884,1756347034059,-400.0,0.00017203,2]
[381783885,1756347034069,-400.0,0.00017203,2]
[381783886,1756347034078,-400.0,0.00017203,2]
[381783887,1756347034087,-400.0,0.00017203,2]
[381783888,1756347034097,-400.0,0.00017203,2]
[381783889,1756347034107,-400.0,0.00017203,2]
[381783890,1756347034121,-400.0,0.00017203,2]
[381783891,1756347034131,-400.0,0.00017203,2]
[381783892,1756347034140,-400.0,0.00017203,2]
[381783893,1756347034150,-400.0,0.00017203,2]
[381783894,1756347034160,-400.0,0.00017203,2]
[381783895,1756347034171,-400.0,0.00017203,2]
[381783896,1756347034181,-400.0,0.00017203,2]
[381783897,1756347034192,-400.0,0.00017203,2]
[381783898,1756347034203,-400.0,0.00017203,2]
[381783899,1756347034213,-400.0,0.00017203,2]
[381783900,1756347034223,-1196.96,0.00017203,2]
[381783901,1756347034233,-400.0,0.00017203,2]
[381783902,1756347034243,-5051.82,0.00017203,2]
[381783903,1756347034252,-400.0,0.00017203,2]
[381783904,1756347034263,-400.0,0.00017203,2]
[381783905,1756347034272,-2745.3,0.00017203,2]
[381783906,1756347034281,-400.0,0.00017203,2]
[381783907,1756347034291,-400.0,0.00017203,2]
[381783908,1756347034300,-400.0,0.00017203,2]
[381783909,1756347034310,-400.0,0.00017203,2]
[381783910,1756347034319,-1443.76,0.00017203,2]
[381783911,1756347034329,-427.14,0.00017203,2]
[381783912,1756347034338,-400.0,0.00017203,2]
[381783913,1756347034347,-400.0,0.00017203,2]
[381783914,1756347034356,-400.0,0.00017203,2]
[381783915,1756347034365,-441.96,0.00017203,2]
[381783916,1756347034375,-400.0,0.00017203,2]
[381783917,1756347034384,-400.0,0.00017204,2]
[381783918,1756347034393,-151.8648046,0.00017215,2]
[381783919,1756347034403,-433.39269676,0.00017233,2]
[381783920,1756347034413,-403.15920402,0.00017241,2]
[381783921,1756347034422,-401.9438356,0.00017241,2]
[381783922,1756347034432,-400.61224355,0.00017241,2]
[381783923,1756347034441,-400.0,0.00017241,2]
[381783924,1756347034453,-400.73547311,0.00017241,2]
[381783925,1756347034463,-400.93793008,0.00017241,2]
[381783926,1756347034472,-401.40910828,0.00017241,2]
[381783927,1756347034482,-401.20363023,0.00017241,2]
[381783928,1756347034491,-400.60515634,0.00017241,2]
[381783929,1756347034500,-380.0,0.00017241,2]
[381783930,1756347034510,-400.0,0.00017241,2]
[381783931,1756347034520,-400.0,0.00017241,2]
[381783932,1756347034530,-400.0,0.00017241,2]
[381783933,1756347034539,-400.0,0.00017241,2]
[381783934,1756347034549,-1377.26,0.00017241,2]
[381783935,1756347034558,-400.0,0.00017241,2]
[381783936,1756347034567,-400.0,0.00017241,2]
[381783937,1756347034576,-400.0,0.00017241,2]
[381783938,1756347034585,-400.0,0.00017241,2]
[381783939,1756347034595,-400.0,0.00017241,2]
[381783940,1756347034604,-400.0,0.00017241,2]
[381783941,1756347034614,-500.0,0.00017242,2]
[381783942,1756347034624,-500.0,0.00017242,2]
[381783943,1756347034635,-202.0,0.000173,2]
[381783944,1756347034643,-875.85671896,0.00017319,2]
[381783945,1756347034652,-454.64096756,0.00017377,2]
[381783946,1756347034661,-1668.02427063,0.00017377,2]
[381783947,1756347034668,-172.3098985,0.00017385,2]
[381783948,1756347034682,-844.93374113,0.00017395,2]
[381783949,1756347034692,-212.25325354,0.00017396,2]
[381783950,1756347034700,-409.82097998,0.00017396,2]
[381783951,1756347034712,-439.42,0.00017466,2]
[381783952,1756347034721,-454.10558707,0.00017473,2]
[381783953,1756347034730,-500.0,0.00017473,2]
[381783954,1756347034740,-400.0,0.00017474,2]
[381783955,1756347034749,-492.47,0.00017474,2]
[381783956,1756347034758,-400.0,0.00017474,2]
[381783957,1756347034767,-400.0,0.00017474,2]
[381783958,1756347034776,-400.0,0.00017474,2]
[381783959,1756347034786,-400.0,0.00017474,2]
[381783960,1756347034793,-400.0,0.00017474,2]
[381783961,1756347034802,-401.82118424,0.00017474,2]
[381783962,1756347034811,-410.86,0.00017474,2]
[381783963,1756347034819,-400.78020644,0.00017474,2]
[381783964,1756347034829,-400.0,0.00017474,2]
[381783965,1756347034838,-401.12820381,0.00017474,2]
[381783966,1756347034847,-400.0,0.00017474,2]
[381783967,1756347034855,-400.0,0.00017474,2]
[381783968,1756347034864,-401.24761091,0.00017474,2]
[381783969,1756347034871,-400.0,0.00017474,2]
[381783970,1756347034879,-400.0,0.00017474,2]
[381783971,1756347034889,-1538.32,0.00017474,2]
[381783972,1756347034896,-401.82621797,0.00017474,2]
[381783973,1756347034905,-400.0,0.00017474,2]
[381783974,1756347035128,-400.0,0.00017474,2]
[381783975,1756347035138,-520.13,0.00017474,2]
[381783976,1756347035147,-400.0,0.00017474,2]
[381783977,1756347035158,-250.1,0.00017474,2]
[381783978,1756347035167,-400.0,0.00017474,2]
[381783979,1756347035177,-397.71069225,0.00017474,2]
[381783980,1756347035187,-400.0,0.00017474,2]
[381783981,1756347035197,-400.0,0.00017474,2]
[381783982,1756347035207,-400.86199208,0.00017474,2]
[381783983,1756347035216,-400.0,0.00017474,2]
[381783984,1756347035225,-400.0,0.00017474,2]
[381783985,1756347035235,-400.0,0.00017474,2]
[381783986,1756347035244,-400.0,0.00017474,2]
[381783987,1756347035253,-401.35292364,0.00017474,2]
[381783988,1756347035262,-400.0,0.00017474,2]
[381783989,1756347035271,-401.52782235,0.00017474,2]
[381783990,1756347035280,-400.0,0.00017474,2]
[381783991,1756347035290,-401.80924732,0.00017474,2]
[381783992,1756347035299,-401.0164633,0.00017474,2]
[381783993,1756347035308,-400.0,0.00017474,2]
[381783994,1756347035318,-400.0,0.00017475,2]
[381783995,1756347035327,-400.0,0.00017475,2]
[381783996,1756347035336,-400.0,0.00017475,2]
[381783997,1756347035346,-530.02,0.00017475,2]
[381783998,1756347035356,-400.0,0.00017475,2]
[381783999,1756347035365,-463.29,0.00017475,2]
[381784000,1756347035375,-400.0,0.00017475,2]
[381784001,1756347035384,-400.0,0.00017475,2]
[381784002,1756347035393,-401.63775054,0.00017475,2]
[381784003,1756347035402,-400.0,0.00017475,2]
[381784004,1756347035411,-400.0,0.00017475,2]
[381784005,1756347035422,-402.77,0.00017475,2]
[381784006,1756347035431,-400.0,0.00017475,2]
[381784007,1756347035440,-400.0,0.00017475,2]
[381784008,1756347035450,-400.0,0.00017475,2]
[381784009,1756347035460,-400.0,0.00017475,2]
[381784010,1756347035470,-400.0,0.00017475,2]
[381784011,1756347035479,-400.0,0.00017475,2]
[381784012,1756347035488,-400.0,0.00017475,2]
[381784013,1756347035499,-400.0,0.00017475,2]
[381784014,1756347035508,-491.8,0.00017475,2]
[381784015,1756347035518,-400.0,0.00017475,2]
[381784016,1756347035534,-546.12,0.00017475,2]
[381784017,1756347035543,-189.91091558,0.00017475,2]
[381784018,1756347035553,-400.0,0.00017475,2]
[381784019,1756347035562,-400.0,0.00017475,2]
[381784020,1756347035571,-400.0,0.00017475,2]
[381784021,1756347035581,-400.0,0.00017475,2]
[381784022,1756347035590,-400.0,0.00017475,2]
[381784023,1756347035599,-400.0,0.00017475,2]
[381784024,1756347035609,-504.22,0.00017475,2]
[381784025,1756347035618,-400.0,0.00017475,2]
[381784026,1756347035627,-401.38729901,0.00017475,2]
[381784027,1756347035636,-400.0,0.00017475,2]
[381784028,1756347035647,-614.38,0.00017475,2]
[381784029,1756347035656,-400.0,0.00017475,2]
[381784030,1756347035666,-400.0,0.00017476,2]
[381784031,1756347035675,-327.38,0.00017476,2]
[381784032,1756347035686,-400.0,0.00017476,2]
[381784033,1756347035695,-400.0,0.00017476,2]
[381784034,1756347035704,-400.0,0.00017476,2]
[381784035,1756347035714,-409.52,0.00017476,2]
[381784036,1756347035724,-400.0,0.00017476,2]
[381784037,1756347035733,-400.0,0.00017476,2]
[381784038,1756347035743,-400.0,0.00017476,2]
[381784039,1756347035753,-323.9,0.00017476,2]
[381784040,1756347035763,-294.66,0.00017476,2]
[381784041,1756347035772,-361.01,0.00017476,2]
[381784042,1756347035783,-365.14,0.00017476,2]
[381784043,1756347035792,-400.0,0.00017476,2]
[381784044,1756347035802,-177.96003002,0.00017476,2]
[381784045,1756347035812,-400.0,0.00017476,2]
[381784046,1756347035834,-537.36591571,0.00017476,2]
[381784047,1756347035843,-400.0,0.00017476,2]
[381784048,1756347035853,-400.0,0.00017476,2]
[381784049,1756347035867,-391.94320167,0.00017476,2]
[381784050,1756347035876,-400.0,0.00017476,2]
[381784051,1756347035886,-400.0,0.00017476,2]
[381784052,1756347035896,-400.0,0.00017476,2]
[381784053,1756347035907,-400.0,0.00017476,2]
[381784054,1756347035916,-400.0,0.00017476,2]
[381784055,1756347035925,-400.0,0.00017476,2]
[381784056,1756347035934,-400.0,0.00017476,2]
[381784057,1756347035944,-400.0,0.00017476,2]
[381784058,1756347035953,-400.0,0.00017476,2]
[381784059,1756347035963,-400.0,0.00017476,2]